[Event "Championnat d'Europe de Blitz"]
[Date "2024.12.09"]
[White "Baskin, Robert"]
[Black "Todorovic, Goran N"]
[WhiteElo "2442"]
[BlackElo "2256"]
[Round "8.43"]
[Result "1/2-1/2"]
[TimeControl "180+2"]

1. c4 {[%emt 00:00:02] [%clk 00:03:02]} e6 {[%emt 00:00:02] [%clk 00:03:02]} 2.
Nf3 {[%emt 00:00:01] [%clk 00:03:03]} d5 {[%emt 00:00:02] [%clk 00:03:01]} 3. g3
{[%emt 00:00:02] [%clk 00:03:03]} Nf6 {[%emt 00:00:02] [%clk 00:03:01]} 4. Bg2
{[%emt 00:00:01] [%clk 00:03:04]} dxc4 {[%emt 00:00:07] [%clk 00:02:56]} 5. Qa4+
{[%emt 00:00:01] [%clk 00:03:05]} Nbd7 {[%emt 00:00:08] [%clk 00:02:50]} 6. Qxc4
{[%emt 00:00:02] [%clk 00:03:05]} a6 {[%emt 00:00:01] [%clk 00:02:51]} 7. Qc2
{[%emt 00:00:02] [%clk 00:03:06]} c5 {[%emt 00:00:11] [%clk 00:02:40]} 8. Nc3
{[%emt 00:00:02] [%clk 00:03:06]} Rb8 {[%emt 00:00:02] [%clk 00:02:40]} 9. O-O
{[%emt 00:00:34] [%clk 00:02:35]} b6 {[%emt 00:00:01] [%clk 00:02:41]} 10. d4
{[%emt 00:00:12] [%clk 00:02:26]} Bb7 {[%emt 00:00:01] [%clk 00:02:41]} 11. e4
{[%emt 00:00:48] [%clk 00:01:40]} cxd4 {[%emt 00:00:07] [%clk 00:02:35]} 12.
Nxd4 {[%emt 00:00:02] [%clk 00:01:41]} Rc8 {[%emt 00:00:02] [%clk 00:02:34]} 13.
Qe2 {[%emt 00:00:02] [%clk 00:01:42]} Bc5 {[%emt 00:00:11] [%clk 00:02:25]} 14.
Rd1 {[%emt 00:00:09] [%clk 00:01:35]} O-O {[%emt 00:00:10] [%clk 00:02:17]} 15.
e5 {[%emt 00:00:38] [%clk 00:00:59]} Bxg2 {[%emt 00:00:03] [%clk 00:02:15]} 16.
Kxg2 {[%emt 00:00:06] [%clk 00:00:56]} Ne8 {[%emt 00:00:15] [%clk 00:02:01]} 17.
Bf4 {[%emt 00:00:03] [%clk 00:00:56]} b5 {[%emt 00:00:07] [%clk 00:01:55]} 18.
Ne4 {[%emt 00:00:03] [%clk 00:00:56]} Bxd4 {[%emt 00:00:13] [%clk 00:01:44]} 19.
Rxd4 {[%emt 00:00:01] [%clk 00:00:57]} Qc7 {[%clk 00:01:44]} 20. Rc1 {[%emt
00:00:14] [%clk 00:00:45]} Qb7 {[%emt 00:00:02] [%clk 00:01:44]} 21. Qf3 {[%emt
00:00:02] [%clk 00:00:46]} Rc7 {[%emt 00:00:15] [%clk 00:01:31]} 22. Rxc7 {[%emt
00:00:16] [%clk 00:00:32]} Qxc7 {[%emt 00:00:02] [%clk 00:01:30]} 23. Qh5 {[%emt
00:00:04] [%clk 00:00:31]} Qc6 {[%emt 00:00:14] [%clk 00:01:17]} 24. f3 {[%emt
00:00:09] [%clk 00:00:25]} f6 {[%emt 00:00:28] [%clk 00:00:51]} 25. exf6 {[%emt
00:00:06] [%clk 00:00:21]} Nexf6 {[%clk 00:00:52]} 26. Nxf6+ {[%emt 00:00:04]
[%clk 00:00:20]} Nxf6 {[%emt 00:00:01] [%clk 00:00:52]} 27. Qe5 {[%emt 00:00:04]
[%clk 00:00:17]} Nd5 {[%emt 00:00:03] [%clk 00:00:51]} 28. Bd2 {[%emt 00:00:04]
[%clk 00:00:16]} Rf5 {[%emt 00:00:06] [%clk 00:00:46]} 29. Qe4 {[%emt 00:00:02]
[%clk 00:00:18]} h6 {[%emt 00:00:02] [%clk 00:00:45]} 30. a4 {[%emt 00:00:10]
[%clk 00:00:11]} Qd6 {[%emt 00:00:19] [%clk 00:00:26]} 31. axb5 {[%emt 00:00:03]
[%clk 00:00:11]} axb5 {[%emt 00:00:01] [%clk 00:00:26]} 32. h4 {[%emt 00:00:04]
[%clk 00:00:09]} Qc6 {[%emt 00:00:04] [%clk 00:00:25]} 33. Qd3 {[%emt 00:00:01]
[%clk 00:00:10]} Rf7 {[%emt 00:00:02] [%clk 00:00:24]} 34. Re4 {[%emt 00:00:02]
[%clk 00:00:11]} Nf6 {[%emt 00:00:06] [%clk 00:00:20]} 35. Rf4 {[%emt 00:00:03]
[%clk 00:00:11]} Rd7 {[%emt 00:00:02] [%clk 00:00:19]} 36. Rd4 {[%emt 00:00:01]
[%clk 00:00:11]} Rxd4 {[%emt 00:00:02] [%clk 00:00:19]} 37. Qxd4 {[%emt
00:00:02] [%clk 00:00:12]} Qd5 {[%emt 00:00:03] [%clk 00:00:18]} 38. Bc3 {[%emt
00:00:03] [%clk 00:00:11]} Qxd4 {[%emt 00:00:01] [%clk 00:00:18]} 39. Bxd4
{[%emt 00:00:01] [%clk 00:00:13]} Nd5 {[%clk 00:00:19]} 40. h5 {[%emt 00:00:02]
[%clk 00:00:12]} Kf7 {[%emt 00:00:01] [%clk 00:00:20]} 41. Kf2 {[%emt 00:00:03]
[%clk 00:00:12]} g6 {[%clk 00:00:21]} 42. hxg6+ {[%emt 00:00:02] [%clk
00:00:11]} Kxg6 {[%clk 00:00:22]} 43. Ke2 {[%emt 00:00:01] [%clk 00:00:12]} h5
{[%clk 00:00:23]} 44. Kd3 {[%emt 00:00:02] [%clk 00:00:13]} Kf5 {[%clk
00:00:24]} 45. Bg7 {[%emt 00:00:08] [%clk 00:00:08]} e5 {[%emt 00:00:01] [%clk
00:00:25]} 46. Bf8 {[%emt 00:00:02] [%clk 00:00:07]} Nc7 {[%emt 00:00:11] [%clk
00:00:16]} 47. Kc3 {[%emt 00:00:03] [%clk 00:00:07]} Nd5+ {[%clk 00:00:17]} 48.
Kd3 {[%emt 00:00:02] [%clk 00:00:07]} Nc7 {[%clk 00:00:18]} 49. b3 {[%emt
00:00:04] [%clk 00:00:06]} Nd5 {[%clk 00:00:18]} 50. Bd6 {[%emt 00:00:01] [%clk
00:00:07]} Ke6 {[%emt 00:00:03] [%clk 00:00:17]} 51. Bb8 {[%clk 00:00:08]} Kf5
{[%clk 00:00:19]} 52. Ba7 {[%emt 00:00:02] [%clk 00:00:09]} Nb4+ {[%emt
00:00:02] [%clk 00:00:18]} 53. Ke3 {[%emt 00:00:01] [%clk 00:00:09]} Nd5+ {[%emt
00:00:02] [%clk 00:00:19]} 54. Kd3 {[%emt 00:00:01] [%clk 00:00:10]} Nb4+ {[%clk
00:00:20]} 55. Ke2 {[%emt 00:00:02] [%clk 00:00:10]} Nd5 {[%emt 00:00:05] [%clk
00:00:16]} 56. Bc5 {[%emt 00:00:02] [%clk 00:00:11]} e4 {[%emt 00:00:02] [%clk
00:00:17]} 57. Bd4 {[%emt 00:00:02] [%clk 00:00:10]} exf3+ {[%emt 00:00:04]
[%clk 00:00:15]} 58. Kxf3 {[%clk 00:00:11]} Nb4 {[%emt 00:00:02] [%clk
00:00:15]} 59. Bc5 {[%emt 00:00:02] [%clk 00:00:11]} Nd3 {[%emt 00:00:03] [%clk
00:00:13]} 60. Be3 {[%emt 00:00:03] [%clk 00:00:11]} 1/2-1/2

[Site "Europe Echecs"]

[Event "Championnat d'Europe de Blitz"]
[Date "2024.12.09"]
[White "Vuckovic, Zarko"]
[Black "Bognar, Csaba Dr."]
[WhiteElo "2334"]
[BlackElo "2067"]
[Round "8.44"]
[Result "1-0"]
[TimeControl "180+2"]

1. e4 {[%emt 00:21:21] [%clk 00:03:03]} d6 {[%emt 00:00:01] [%clk 00:03:03]} 2.
d4 {[%emt 00:00:01] [%clk 00:03:04]} Nf6 {[%emt 00:00:01] [%clk 00:03:03]} 3.
Bd3 {[%emt 00:00:01] [%clk 00:03:05]} g6 {[%emt 00:00:02] [%clk 00:03:04]} 4.
Nf3 {[%emt 00:00:01] [%clk 00:03:06]} Bg7 {[%emt 00:00:02] [%clk 00:03:04]} 5.
O-O {[%emt 00:00:02] [%clk 00:03:07]} O-O {[%emt 00:00:01] [%clk 00:03:05]} 6.
Re1 {[%clk 00:03:07]} c6 {[%emt 00:00:02] [%clk 00:03:05]} 7. h3 {[%emt
00:00:20] [%clk 00:02:49]} Qc7 {[%emt 00:00:02] [%clk 00:03:06]} 8. c4 {[%emt
00:00:03] [%clk 00:02:47]} e5 {[%emt 00:00:02] [%clk 00:03:06]} 9. Be3 {[%emt
00:00:04] [%clk 00:02:45]} h6 {[%emt 00:00:14] [%clk 00:02:54]} 10. Nc3 {[%emt
00:00:01] [%clk 00:02:46]} Qe7 {[%clk 00:02:55]} 11. Qc2 {[%emt 00:00:14] [%clk
00:02:34]} Nbd7 {[%emt 00:00:04] [%clk 00:02:54]} 12. Rad1 {[%clk 00:02:34]} Ne8
{[%emt 00:00:09] [%clk 00:02:47]} 13. b4 {[%emt 00:00:10] [%clk 00:02:26]} a6
{[%emt 00:00:21] [%clk 00:02:28]} 14. a4 {[%emt 00:00:02] [%clk 00:02:27]} exd4
{[%emt 00:00:15] [%clk 00:02:14]} 15. Nxd4 {[%emt 00:00:05] [%clk 00:02:24]} Ne5
{[%emt 00:00:22] [%clk 00:01:55]} 16. Bf1 {[%emt 00:00:01] [%clk 00:02:23]} f6
{[%emt 00:00:04] [%clk 00:01:54]} 17. b5 {[%emt 00:00:08] [%clk 00:02:18]} axb5
{[%emt 00:00:03] [%clk 00:01:53]} 18. cxb5 {[%clk 00:02:18]} cxb5 {[%emt
00:00:04] [%clk 00:01:51]} 19. Nd5 {[%emt 00:00:13] [%clk 00:02:07]} Qf7 {[%emt
00:00:04] [%clk 00:01:49]} 20. Nxb5 {[%emt 00:00:06] [%clk 00:02:03]} Be6 {[%emt
00:00:11] [%clk 00:01:40]} 21. f4 {[%emt 00:00:24] [%clk 00:01:41]} Rc8 {[%emt
00:00:02] [%clk 00:01:40]} 22. Qb3 {[%emt 00:00:09] [%clk 00:01:34]} Nc6 {[%emt
00:00:08] [%clk 00:01:35]} 23. f5 {[%emt 00:00:22] [%clk 00:01:13]} gxf5 {[%emt
00:00:04] [%clk 00:01:33]} 24. exf5 {[%emt 00:00:01] [%clk 00:01:14]} Bxf5
{[%emt 00:00:41] [%clk 00:00:54]} 25. Bc4 {[%emt 00:00:02] [%clk 00:01:13]} Kh8
{[%emt 00:00:01] [%clk 00:00:55]} 26. Nb6 {[%emt 00:00:06] [%clk 00:01:10]} Qg6
{[%emt 00:00:04] [%clk 00:00:53]} 27. Nxc8 {[%emt 00:00:13] [%clk 00:00:58]}
Bxh3 {[%emt 00:00:06] [%clk 00:00:50]} 28. Bf1 {[%emt 00:00:06] [%clk 00:00:54]}
Bxc8 {[%emt 00:00:01] [%clk 00:00:51]} 29. Bf4 {[%emt 00:00:12] [%clk 00:00:45]}
Ne5 {[%emt 00:00:09] [%clk 00:00:43]} 30. Nxd6 {[%emt 00:00:12] [%clk 00:00:35]}
Nxd6 {[%emt 00:00:03] [%clk 00:00:43]} 31. Rxd6 {[%emt 00:00:01] [%clk
00:00:36]} Ng4 {[%emt 00:00:15] [%clk 00:00:30]} 32. Qg3 {[%emt 00:00:11] [%clk
00:00:26]} Bf5 {[%emt 00:00:16] [%clk 00:00:17]} 33. Re7 {[%emt 00:00:09] [%clk
00:00:18]} Ra8 {[%emt 00:00:05] [%clk 00:00:14]} 34. Rxb7 {[%emt 00:00:05] [%clk
00:00:15]} Rxa4 {[%emt 00:00:03] [%clk 00:00:14]} 35. Rd8+ {[%emt 00:00:04]
[%clk 00:00:13]} Kh7 {[%clk 00:00:15]} 36. Re8 {[%emt 00:00:01] [%clk 00:00:14]}
Ne5 {[%emt 00:00:10] [%clk 00:00:07]} 37. Ree7 {[%emt 00:00:02] [%clk 00:00:13]}
Ng4 {[%emt 00:00:13]} 38. Re8 {[%clk 00:03:02]} 1-0

[Site "Europe Echecs"]

[Event "Championnat d'Europe de Blitz"]
[Date "2024.12.09"]
[White "Arnaudov, G. Petar"]
[Black "Redzisz, Michal"]
[WhiteElo "2401"]
[BlackElo "2263"]
[Round "8.45"]
[Result "0-1"]
[TimeControl "180+2"]

1. Nf3 {[%clk 00:03:03]} d5 {[%emt 00:00:06] [%clk 00:03:00]} 2. g3 {[%emt
00:00:02] [%clk 00:03:02]} c5 {[%emt 00:00:01] [%clk 00:03:00]} 3. Bg2 {[%emt
00:00:01] [%clk 00:03:03]} Nf6 {[%emt 00:00:01] [%clk 00:03:01]} 4. O-O {[%emt
00:00:02] [%clk 00:03:03]} g6 {[%emt 00:00:13] [%clk 00:02:50]} 5. d4 {[%emt
00:00:16] [%clk 00:02:49]} cxd4 {[%emt 00:00:02] [%clk 00:02:50]} 6. Nxd4 {[%emt
00:00:02] [%clk 00:02:50]} Bg7 {[%emt 00:00:02] [%clk 00:02:49]} 7. c4 {[%emt
00:00:02] [%clk 00:02:50]} O-O {[%emt 00:00:23] [%clk 00:02:28]} 8. Nb3 {[%emt
00:00:08] [%clk 00:02:43]} dxc4 {[%emt 00:00:19] [%clk 00:02:12]} 9. Qxd8 {[%emt
00:00:01] [%clk 00:02:44]} Rxd8 {[%emt 00:00:01] [%clk 00:02:13]} 10. Na5 {[%emt
00:00:05] [%clk 00:02:41]} Nc6 {[%emt 00:00:18] [%clk 00:01:57]} 11. Nxc4 {[%emt
00:00:22] [%clk 00:02:20]} Be6 {[%emt 00:00:07] [%clk 00:01:52]} 12. Ne3 {[%emt
00:00:13] [%clk 00:02:09]} Rac8 {[%emt 00:00:35] [%clk 00:01:20]} 13. Nc3 {[%clk
00:02:10]} a6 {[%emt 00:00:08] [%clk 00:01:14]} 14. Rd1 {[%emt 00:00:11] [%clk
00:02:01]} b5 {[%emt 00:00:17] [%clk 00:00:59]} 15. Bd2 {[%emt 00:00:11] [%clk
00:01:52]} Nd4 {[%emt 00:00:08] [%clk 00:00:53]} 16. Kf1 {[%emt 00:00:31] [%clk
00:01:23]} h5 {[%emt 00:00:22] [%clk 00:00:33]} 17. h4 {[%emt 00:00:15] [%clk
00:01:11]} Ng4 {[%emt 00:00:02] [%clk 00:00:32]} 18. Nxg4 {[%emt 00:00:05] [%clk
00:01:07]} Bxg4 {[%emt 00:00:01] [%clk 00:00:34]} 19. f3 {[%emt 00:00:21] [%clk
00:00:48]} Be6 {[%emt 00:00:06] [%clk 00:00:30]} 20. Be1 {[%emt 00:00:32] [%clk
00:00:18]} Nc2 {[%emt 00:00:07] [%clk 00:00:25]} 21. Rxd8+ {[%emt 00:00:02]
[%clk 00:00:19]} Rxd8 {[%clk 00:00:26]} 22. Rc1 {[%clk 00:00:20]} Nxe1 {[%emt
00:00:16] [%clk 00:00:12]} 23. Kxe1 {[%emt 00:00:01] [%clk 00:00:20]} b4 {[%clk
00:00:14]} 24. Na4 {[%emt 00:00:16] [%clk 00:00:06]} Bxa2 {[%clk 00:00:15]} 25.
Rc6 {[%emt 00:00:04] [%clk 00:00:03]} Bb3 {[%emt 00:00:11] [%clk 00:00:07]} 26.
Nc5 {[%clk 00:00:04]} Rd1+ {[%emt 00:00:02] [%clk 00:00:06]} 27. Kf2 {[%clk
00:00:06]} Bd4+ {[%emt 00:00:02] [%clk 00:00:06]} 28. e3 {[%emt 00:00:01] [%clk
00:00:07]} Bxc5 {[%emt 00:00:04] [%clk 00:00:04]} 29. Rxc5 {[%clk 00:00:08]}
Rd2+ {[%emt 00:00:01] [%clk 00:00:04]} 30. Kg1 {[%clk 00:00:10]} Rxb2 {[%emt
00:00:01] [%clk 00:00:05]} 31. Ra5 {[%emt 00:00:02] [%clk 00:00:10]} Bc4 {[%clk
00:00:06]} 32. f4 {[%emt 00:00:02] [%clk 00:00:10]} b3 {[%emt 00:00:02] [%clk
00:00:06]} 33. Be4 {[%clk 00:00:11]} Ra2 {[%emt 00:00:03] [%clk 00:00:06]} 34.
Rc5 {[%emt 00:00:01] [%clk 00:00:12]} Be6 {[%emt 00:00:02] [%clk 00:00:05]} 35.
Rc7 {[%emt 00:00:06] [%clk 00:00:09]} Kf8 {[%emt 00:00:02] [%clk 00:00:06]} 36.
Rb7 {[%clk 00:00:09]} a5 {[%emt 00:00:01] [%clk 00:00:06]} 37. Bd3 {[%emt
00:00:02] [%clk 00:00:09]} a4 {[%emt 00:00:02] [%clk 00:00:07]} 38. Kf1 {[%emt
00:00:02] [%clk 00:00:09]} a3 {[%clk 00:00:09]} 39. Ke1 {[%emt 00:00:02] [%clk
00:00:09]} Ra1+ {[%emt 00:00:02] [%clk 00:00:09]} 40. Kd2 {[%clk 00:00:11]} a2
{[%clk 00:00:10]} 0-1

[Site "Europe Echecs"]

[Event "Championnat d'Europe de Blitz"]
[Date "2024.12.09"]
[White "Mohr, Georg"]
[Black "Minas, Ioannis"]
[WhiteElo "2385"]
[BlackElo "1987"]
[Round "8.46"]
[Result "1-0"]
[TimeControl "180+2"]

1. d4 {[%emt 00:16:18] [%clk 00:03:04]} Nf6 {[%emt 00:00:01] [%clk 00:03:03]} 2.
Nf3 {[%emt 00:00:02] [%clk 00:03:04]} g6 {[%emt 00:00:12] [%clk 00:02:54]} 3. g3
{[%clk 00:03:04]} Bg7 {[%emt 00:00:01] [%clk 00:02:55]} 4. Bg2 {[%emt 00:00:01]
[%clk 00:03:05]} O-O {[%emt 00:00:01] [%clk 00:02:56]} 5. O-O {[%emt 00:00:02]
[%clk 00:03:06]} c6 {[%emt 00:00:09] [%clk 00:02:48]} 6. c4 {[%emt 00:00:07]
[%clk 00:03:01]} d5 {[%emt 00:00:03] [%clk 00:02:47]} 7. Qb3 {[%clk 00:03:02]}
dxc4 {[%emt 00:00:06] [%clk 00:02:43]} 8. Qxc4 {[%emt 00:00:02] [%clk 00:03:02]}
Na6 {[%emt 00:00:06] [%clk 00:02:39]} 9. Nc3 {[%emt 00:00:04] [%clk 00:03:00]}
b5 {[%emt 00:00:09] [%clk 00:02:33]} 10. Qxc6 {[%emt 00:00:47] [%clk 00:02:14]}
Rb8 {[%emt 00:00:14] [%clk 00:02:22]} 11. Ne4 {[%emt 00:00:04] [%clk 00:02:10]}
Nxe4 {[%emt 00:00:13] [%clk 00:02:12]} 12. Qxe4 {[%clk 00:02:11]} Bf5 {[%emt
00:00:05] [%clk 00:02:10]} 13. Qh4 {[%emt 00:00:02] [%clk 00:02:10]} Nb4 {[%emt
00:00:06] [%clk 00:02:06]} 14. Bh6 {[%emt 00:00:05] [%clk 00:02:07]} e6 {[%emt
00:01:15] [%clk 00:00:53]} 15. Qxd8 {[%emt 00:00:10] [%clk 00:01:59]} Rfxd8
{[%emt 00:00:02] [%clk 00:00:54]} 16. Bxg7 {[%emt 00:00:03] [%clk 00:01:57]}
Kxg7 {[%emt 00:00:02] [%clk 00:00:55]} 17. Rfd1 {[%emt 00:00:04] [%clk
00:01:54]} Be4 {[%emt 00:00:10] [%clk 00:00:47]} 18. e3 {[%emt 00:00:04] [%clk
00:01:52]} Rbc8 {[%emt 00:00:05] [%clk 00:00:44]} 19. a3 {[%emt 00:00:05] [%clk
00:01:50]} Nd5 {[%emt 00:00:07] [%clk 00:00:38]} 20. Rac1 {[%emt 00:00:05] [%clk
00:01:47]} Bc2 {[%emt 00:00:06] [%clk 00:00:34]} 21. Re1 {[%emt 00:00:06] [%clk
00:01:43]} Bd3 {[%emt 00:00:10] [%clk 00:00:27]} 22. Nd2 {[%emt 00:00:06] [%clk
00:01:39]} Nb6 {[%emt 00:00:04] [%clk 00:00:25]} 23. b3 {[%emt 00:00:08] [%clk
00:01:33]} a5 {[%emt 00:00:01] [%clk 00:00:26]} 24. Bf1 {[%emt 00:00:03] [%clk
00:01:31]} Bxf1 {[%emt 00:00:04] [%clk 00:00:25]} 25. Kxf1 {[%emt 00:00:01]
[%clk 00:01:32]} a4 {[%emt 00:00:01] [%clk 00:00:26]} 26. bxa4 {[%emt 00:00:03]
[%clk 00:01:31]} Nxa4 {[%clk 00:00:27]} 27. Ke2 {[%emt 00:00:04] [%clk
00:01:28]} Rc3 {[%emt 00:00:14] [%clk 00:00:16]} 28. Rxc3 {[%emt 00:00:03] [%clk
00:01:27]} Nxc3+ {[%clk 00:00:17]} 29. Kd3 {[%emt 00:00:01] [%clk 00:01:27]} Nd5
{[%emt 00:00:03] [%clk 00:00:16]} 30. Rb1 {[%emt 00:00:03] [%clk 00:01:27]} Ra8
{[%emt 00:00:01] [%clk 00:00:17]} 31. Rb3 {[%emt 00:00:03] [%clk 00:01:25]} Ra5
{[%emt 00:00:03] [%clk 00:00:16]} 32. Ne4 {[%emt 00:00:03] [%clk 00:01:24]} f5
{[%emt 00:00:07] [%clk 00:00:11]} 33. Nc3 {[%emt 00:00:05] [%clk 00:01:21]} Nxc3
{[%emt 00:00:02] [%clk 00:00:11]} 34. Kxc3 {[%emt 00:00:01] [%clk 00:01:22]} 1-0

[Site "Europe Echecs"]

[Event "Championnat d'Europe de Blitz"]
[Date "2024.12.09"]
[White "Toncic, Danilo"]
[Black "Domingo Nunez, Ruben"]
[WhiteElo "1972"]
[BlackElo "2409"]
[Round "8.47"]
[Result "0-1"]
[TimeControl "180+2"]

1. b3 {[%clk 00:03:04]} d6 {[%emt 00:00:01] [%clk 00:03:04]} 2. Bb2 {[%clk
00:03:05]} Nd7 {[%clk 00:03:05]} 3. e3 {[%emt 00:00:01] [%clk 00:03:06]} Ngf6
{[%clk 00:03:06]} 4. d4 {[%emt 00:00:02] [%clk 00:03:05]} g6 {[%clk 00:03:07]}
5. Nf3 {[%emt 00:00:01] [%clk 00:03:06]} Bg7 {[%emt 00:00:01] [%clk 00:03:09]}
6. c4 {[%emt 00:00:01] [%clk 00:03:06]} O-O {[%emt 00:00:02] [%clk 00:03:09]} 7.
Be2 {[%clk 00:03:08]} e5 {[%emt 00:00:01] [%clk 00:03:11]} 8. dxe5 {[%clk
00:03:08]} Ng4 {[%emt 00:00:01]} 9. Nc3 {[%emt 00:00:01] [%clk 00:03:08]} Ngxe5
{[%clk 00:03:13]} 10. O-O {[%emt 00:00:04] [%clk 00:03:06]} h5 {[%emt 00:00:03]
[%clk 00:03:12]} 11. Qc2 {[%emt 00:00:06] [%clk 00:03:02]} Nc5 {[%emt 00:00:08]
[%clk 00:03:06]} 12. Rad1 {[%emt 00:00:11] [%clk 00:02:54]} Bf5 {[%emt 00:00:01]
[%clk 00:03:06]} 13. e4 {[%emt 00:00:07] [%clk 00:02:50]} Nxf3+ {[%emt 00:00:33]
[%clk 00:02:35]} 14. Bxf3 {[%emt 00:00:02] [%clk 00:02:50]} Bg4 {[%emt 00:00:06]
[%clk 00:02:31]} 15. Bxg4 {[%emt 00:00:16] [%clk 00:02:36]} hxg4 {[%emt
00:00:01] [%clk 00:02:32]} 16. Rfe1 {[%emt 00:00:26] [%clk 00:02:12]} Qh4 {[%emt
00:00:10] [%clk 00:02:24]} 17. Nd5 {[%emt 00:00:18] [%clk 00:01:56]} c6 {[%emt
00:00:03] [%clk 00:02:23]} 18. Nf4 {[%emt 00:00:31] [%clk 00:01:23]} Qh8 {[%emt
00:01:51] [%clk 00:00:38]} 19. Bxg7 {[%emt 00:00:05] [%clk 00:01:20]} Qxg7
{[%clk 00:00:39]} 20. Rxd6 {[%emt 00:00:09] [%clk 00:01:13]} Qe5 {[%emt
00:00:01] [%clk 00:00:40]} 21. Qd2 {[%emt 00:00:10] [%clk 00:01:05]} Nxe4 {[%emt
00:00:01] [%clk 00:00:41]} 22. Qd3 {[%emt 00:00:51] [%clk 00:00:16]} Qxd6 {[%emt
00:00:04] [%clk 00:00:38]} 23. Rxe4 {[%emt 00:00:10] [%clk 00:00:09]} Qxd3
{[%emt 00:00:02] [%clk 00:00:38]} 24. Nxd3 {[%clk 00:00:10]} Rad8 {[%clk
00:00:39]} 25. Re3 {[%emt 00:00:03] [%clk 00:00:09]} Rd4 {[%emt 00:00:08] [%clk
00:00:34]} 26. g3 {[%clk 00:00:10]} Rfd8 {[%emt 00:00:01] [%clk 00:00:34]} 27.
Nf4 {[%clk 00:00:11]} Rd1+ {[%emt 00:00:05] [%clk 00:00:32]} 28. Kg2 {[%emt
00:00:02] [%clk 00:00:11]} Ra1 {[%emt 00:00:02] [%clk 00:00:32]} 29. a4 {[%emt
00:00:02] [%clk 00:00:11]} Rdd1 {[%emt 00:00:01] [%clk 00:00:33]} 30. f3 {[%emt
00:00:03] [%clk 00:00:10]} Rg1+ {[%emt 00:00:13] [%clk 00:00:22]} 31. Kf2 {[%emt
00:00:01] [%clk 00:00:11]} Raf1+ {[%emt 00:00:02] [%clk 00:00:23]} 32. Ke2
{[%clk 00:00:12]} gxf3+ {[%emt 00:00:06] [%clk 00:00:19]} 33. Rxf3 {[%emt
00:00:02] [%clk 00:00:12]} Rxf3 {[%emt 00:00:02] [%clk 00:00:19]} 0-1

[Site "Europe Echecs"]

[Event "Championnat d'Europe de Blitz"]
[Date "2024.12.09"]
[White "Afonso, Joao Pedro"]
[Black "Nevednichy, Vladislav"]
[WhiteElo "2112"]
[BlackElo "2451"]
[Round "8.48"]
[Result "0-1"]
[TimeControl "180+2"]

1. e4 {[%emt 00:00:02] [%clk 00:03:02]} e6 {[%emt 00:00:03] [%clk 00:03:01]} 2.
Nf3 {[%emt 00:00:04] [%clk 00:03:00]} c5 {[%emt 00:00:04] [%clk 00:02:59]} 3. c3
{[%emt 00:00:04] [%clk 00:02:57]} d5 {[%emt 00:00:13] [%clk 00:02:49]} 4. exd5
{[%emt 00:00:01] [%clk 00:02:58]} exd5 {[%emt 00:00:03] [%clk 00:02:48]} 5. Bb5+
{[%emt 00:00:08] [%clk 00:02:52]} Nc6 {[%emt 00:00:17] [%clk 00:02:33]} 6. d4
{[%emt 00:00:03] [%clk 00:02:51]} a6 {[%emt 00:00:12] [%clk 00:02:24]} 7. Be2
{[%emt 00:00:35] [%clk 00:02:17]} Nf6 {[%emt 00:00:11] [%clk 00:02:15]} 8. O-O
{[%emt 00:00:03] [%clk 00:02:15]} c4 {[%emt 00:00:04] [%clk 00:02:14]} 9. b3
{[%emt 00:00:08] [%clk 00:02:09]} cxb3 {[%emt 00:00:03] [%clk 00:02:13]} 10.
axb3 {[%emt 00:00:01] [%clk 00:02:10]} Bd6 {[%emt 00:00:06] [%clk 00:02:09]} 11.
c4 {[%emt 00:00:09] [%clk 00:02:03]} O-O {[%emt 00:00:07] [%clk 00:02:04]} 12.
Nc3 {[%emt 00:00:02] [%clk 00:02:03]} h6 {[%emt 00:00:12] [%clk 00:01:54]} 13.
h3 {[%emt 00:00:29] [%clk 00:01:36]} Re8 {[%emt 00:00:08] [%clk 00:01:48]} 14.
Be3 {[%emt 00:00:03] [%clk 00:01:35]} Bf5 {[%emt 00:00:04] [%clk 00:01:46]} 15.
Bd3 {[%emt 00:00:24] [%clk 00:01:13]} Bxd3 {[%emt 00:00:17] [%clk 00:01:31]} 16.
Qxd3 {[%emt 00:00:01] [%clk 00:01:14]} Rc8 {[%emt 00:00:03] [%clk 00:01:30]} 17.
c5 {[%emt 00:00:08] [%clk 00:01:08]} Bc7 {[%emt 00:00:04] [%clk 00:01:28]} 18.
Rfe1 {[%emt 00:00:11] [%clk 00:00:59]} Ba5 {[%emt 00:00:04] [%clk 00:01:26]} 19.
Bd2 {[%emt 00:00:06] [%clk 00:00:55]} Bxc3 {[%emt 00:00:10] [%clk 00:01:17]} 20.
Bxc3 {[%clk 00:00:55]} Ne4 {[%emt 00:00:03] [%clk 00:01:18]} 21. b4 {[%emt
00:00:07] [%clk 00:00:50]} Re6 {[%emt 00:00:12] [%clk 00:01:08]} 22. Ne5 {[%emt
00:00:05] [%clk 00:00:47]} Nxe5 {[%emt 00:00:33] [%clk 00:00:38]} 23. dxe5
{[%emt 00:00:01] [%clk 00:00:47]} Rg6 {[%clk 00:00:39]} 24. Rad1 {[%emt
00:00:13] [%clk 00:00:36]} Qg5 {[%emt 00:00:06] [%clk 00:00:35]} 25. g3 {[%emt
00:00:13] [%clk 00:00:25]} Qf5 {[%emt 00:00:02] [%clk 00:00:35]} 26. Re2 {[%emt
00:00:11] [%clk 00:00:16]} Qxh3 {[%emt 00:00:05] [%clk 00:00:31]} 27. Rxe4
{[%emt 00:00:12] [%clk 00:00:07]} dxe4 {[%emt 00:00:02] [%clk 00:00:31]} 28.
Qxe4 {[%emt 00:00:02] [%clk 00:00:07]} Rxg3+ {[%emt 00:00:07] [%clk 00:00:26]}
29. fxg3 {[%emt 00:00:03] [%clk 00:00:06]} Qxg3+ {[%clk 00:00:27]} 30. Qg2
{[%emt 00:00:01] [%clk 00:00:06]} Qe3+ {[%emt 00:00:07] [%clk 00:00:22]} 31. Kh1
{[%emt 00:00:05] [%clk 00:00:04]} Qxc3 {[%clk 00:00:23]} 32. Qxb7 {[%emt
00:00:03] [%clk 00:00:03]} Qh3+ {[%emt 00:00:10] [%clk 00:00:15]} 33. Kg1 {[%clk
00:00:05]} Qg4+ {[%emt 00:00:02] [%clk 00:00:15]} 34. Kf2 {[%emt 00:00:02] [%clk
00:00:05]} Re8 {[%emt 00:00:02] [%clk 00:00:14]} 35. Qf3 {[%emt 00:00:02] [%clk
00:00:05]} Qh4+ {[%emt 00:00:03] [%clk 00:00:14]} 36. Qg3 {[%emt 00:00:02] [%clk
00:00:06]} Qxb4 {[%clk 00:00:15]} 37. Qe3 {[%emt 00:00:02] [%clk 00:00:05]} Qh4+
{[%emt 00:00:04] [%clk 00:00:12]} 38. Kg2 {[%emt 00:00:03] [%clk 00:00:05]} Qg4+
{[%clk 00:00:13]} 39. Kf2 {[%emt 00:00:02] [%clk 00:00:05]} Qxd1 {[%clk
00:00:15]} 0-1

[Site "Europe Echecs"]